bitfinex-derivatives/quotes_SOLF0:USTF0_20240823
["timestamp","ask_amount","ask_price","bid_price","bid_amount"]
[1724408667074,3.4583,144.57,144.54,10.91808001]
[1724408667271,3.50232568,144.57,144.54,10.9654946]
[1724408668268,3.4584,144.56,144.54,10.9654946]
[1724408669070,3.4584,144.56,144.54,3.5154946]
[1724408677672,3.4586,144.55,144.54,3.5154946]
[1724408677878,3.4586,144.55,144.54,8.57495668]
[1724408679877,3.4586,144.55,144.54,8.57495828]
[1724408680381,3.4586,144.55,144.54,5.10687827]
[1724408680572,3.4586,144.55,144.54,0.04741459]
[1724408689683,10.07352568,144.57,144.5,7.45]
[1724408689878,1.2809,144.56,144.5,7.45]
[1724408690075,3.4595,144.52,144.51,3.67663633]
[1724408690280,7.45,144.55,144.5,7.45]
[1724408690680,3.4596,144.52,144.51,0.05103325]
[1724408708899,10.9096,144.52,144.51,0.05103325]
[1724408709701,3.4603,144.49,144.46,104.63220274]
[1724408710300,3.4604,144.48,144.46,97.18220274]
[1724408710601,3.4604,144.48,144.46,104.63220274]
[1724408710802,3.50624212,144.48,144.46,104.68318777]
[1724408714105,0.04584212,144.48,144.46,108.14398777]
[1724408714404,0.04584212,144.48,144.47,7.45]
[1724408716102,0.04584212,144.48,144.46,100.69398777]
[1724408716298,0.04584212,144.48,144.46,108.14398777]
[1724408723799,0.04584212,144.48,144.47,3.4605]
[1724408723998,0.04584212,144.48,144.47,10.9105]
[1724408724399,1.27171482,144.55,144.49,3.4599]
[1724408724601,1.2809,144.56,144.51,7.45]
[1724408724800,2.5795,144.57,144.47,29.8]
[1724408724801,2.5795,144.57,144.52,7.45]
[1724408725301,0.04848217,144.56,144.53,0.04362737]
[1724408726406,3.4589,144.54,144.53,0.04362737]
[1724408738726,3.4587,144.55,144.53,0.04362737]
[1724408739128,0.04848217,144.56,144.53,0.04362737]
[1724408739129,0.04848217,144.56,144.54,7.45]
[1724408739331,0.04848217,144.56,144.55,7.45]
[1724408739518,0.04848217,144.56,144.55,10.9086]
[1724408740220,0.04848217,144.56,144.55,14.58360027]
[1724408742932,0.04848217,144.56,144.55,7.13360027]
[1724408743127,0.04848217,144.56,144.55,10.9086]
[1724408743924,0.04848217,144.56,144.55,7.45]
[1724408744122,0.04848217,144.56,144.53,0.04362737]
[1724408744333,0.04848217,144.56,144.54,5.05878759]
[1724408744532,0.04848217,144.56,144.53,7.49362737]
[1724408745033,3.50688217,144.56,144.53,7.49362737]
[1724408749725,3.50688217,144.56,144.53,10.95272737]
[1724408753032,3.50688217,144.56,144.55,7.45]
[1724408754432,0.04848217,144.56,144.55,7.45]
[1724408762145,0.04848217,144.56,144.55,10.9086]
[1724408764443,0.04848217,144.56,144.55,7.45]
[1724408768442,0.04848217,144.56,144.55,10.9086]
[1724408770249,0.04848217,144.56,144.55,7.45]
[1724408773048,0.04848217,144.56,144.54,3.4588]
[1724408773049,0.04848217,144.56,144.53,3.50252737]
[1724408773350,0.04848217,144.56,144.54,7.45]
[1724408773750,3.50688217,144.56,144.54,7.45]
[1724408774358,3.50688217,144.56,144.53,3.50252737]
[1724408774550,3.50688217,144.56,144.53,10.95252737]
[1724408780060,0.04848217,144.56,144.53,0.04362737]
[1724408780561,3.4588,144.55,144.53,0.04362737]
[1724408792265,3.50698217,144.56,144.53,3.50272737]
[1724408792668,0.04848217,144.56,144.53,0.04362737]
[1724408793774,3.4587,144.55,144.53,0.04362737]
[1724408796876,3.4587,144.55,144.54,3.67599622]
[1724408797077,3.4587,144.55,144.53,0.04362737]
[1724408797273,3.4587,144.55,144.54,3.67599622]
[1724408798075,3.4587,144.55,144.53,0.04362737]
[1724408798277,3.4587,144.55,144.54,3.67599723]
[1724408798976,3.4587,144.55,144.54,3.67599622]
[1724408802886,3.4587,144.55,144.53,0.04362737]
[1724408803205,3.4587,144.55,144.54,3.67599622]
[1724408804097,3.4587,144.55,144.53,0.04362737]
[1724408804289,3.4587,144.55,144.54,3.67599622]
[1724408805194,3.4587,144.55,144.53,0.04362737]
[1724408805387,3.4587,144.55,144.54,3.67600911]
[1724408805786,3.4587,144.55,144.53,0.04362737]
[1724408806086,3.4586,144.55,144.53,0.04362737]
[1724408810597,3.4586,144.55,144.54,3.67603187]
[1724408812498,3.4586,144.55,144.54,3.67603086]
[1724408812899,3.4586,144.55,144.53,0.04362737]
[1724408813203,3.4586,144.55,144.54,3.67607855]
[1724408815803,3.4586,144.55,144.54,3.67603085]
[1724408816898,3.4586,144.55,144.54,3.67603186]
[1724408819106,3.4589,144.54,144.53,0.04362737]
[1724408819805,7.45,144.54,144.48,3.4601]
[1724408820001,7.45,144.54,144.49,5.06094766]
[1724408820206,7.45,144.54,144.5,12.51094766]
[1724408820505,7.45,144.54,144.51,3.6769153]
[1724408820701,7.45,144.54,144.5,7.45]
[1724408820902,0.04860038,144.53,144.51,3.72297414]
[1724408821102,0.04860038,144.53,144.51,0.0459656]
[1724408821302,3.4595,144.52,144.51,0.0459656]
[1724408821700,3.4595,144.52,144.51,7.4959656]
[1724408821904,3.4595,144.52,144.51,11.17275367]
[1724408822298,3.50790038,144.53,144.51,11.17275367]
[1724408822503,3.50790038,144.53,144.51,7.4959656]
[1724408823902,3.50790038,144.53,144.52,3.67656287]
[1724408824200,0.04860038,144.53,144.52,12.51043707]
[1724408825503,0.04860038,144.53,144.52,15.96983707]
[1724408826303,0.04860038,144.53,144.52,14.58596287]
[1724408826504,0.04860038,144.53,144.52,15.96918216]
[1724408826704,0.04860038,144.53,144.52,12.50978216]
[1724408828012,0.04860038,144.53,144.52,12.50978269]
[1724408831206,0.04860038,144.53,144.52,7.45]
[1724408831406,0.04860038,144.53,144.52,8.83379009]
[1724408831608,0.04860038,144.53,144.52,7.45]
[1724408831809,0.04860038,144.53,144.52,16.18585218]
[1724408833512,0.04860038,144.53,144.52,19.64525218]
[1724408834514,0.04860038,144.53,144.52,18.26146182]
[1724408834814,0.04860038,144.53,144.52,19.64525164]
[1724408836219,0.04860038,144.53,144.52,15.96922073]
[1724408836521,0.04860038,144.53,144.52,8.51922073]
[1724408836718,0.04860038,144.53,144.52,15.96922073]
[1724408837720,0.04860038,144.53,144.52,14.58543091]
[1724408838021,0.04860038,144.53,144.52,15.96922122]
[1724408841011,0.04860038,144.53,144.52,10.9094]
[1724408841216,0.04860038,144.53,144.52,15.96922127]
[1724408844322,0.04860038,144.53,144.52,12.29319036]
[1724408844524,0.04860038,144.53,144.52,15.96922026]
[1724408846831,0.04860038,144.53,144.52,12.50982026]
[1724408847529,0.04860038,144.53,144.52,11.1260299]
[1724408847728,0.04860038,144.53,144.52,12.50981289]
[1724408847930,0.04860038,144.53,144.52,12.50981166]
[1724408850227,0.04860038,144.53,144.52,5.05981166]
[1724408850427,0.04860038,144.53,144.52,12.50981166]
[1724408850827,0.04860038,144.53,144.52,8.83384888]
[1724408851034,0.04860038,144.53,144.52,12.5100992]
[1724408851227,0.04860038,144.53,144.52,7.45]
[1724408851429,0.04860038,144.53,144.52,8.83384935]
[1724408851635,0.04860038,144.53,144.52,12.51010145]
[1724408852642,0.04860038,144.53,144.52,15.96950145]
[1724408853942,3.4585,144.56,144.53,3.459]
[1724408854246,3.4585,144.56,144.55,7.45]
[1724408854439,3.4585,144.56,144.55,12.50929383]
[1724408857542,3.4585,144.56,144.55,7.45]
[1724408857749,3.4585,144.56,144.55,12.50914848]
[1724408858049,3.4585,144.56,144.55,5.05914848]
[1724408858441,3.4585,144.56,144.54,7.49587824]
[1724408859846,3.4586,144.55,144.54,7.49587824]
[1724408860052,3.4586,144.55,144.54,12.5555966]
[1724408860348,3.4586,144.55,144.54,11.17175817]
[1724408860545,3.4586,144.55,144.54,12.55557379]
[1724408860749,3.4586,144.55,144.54,7.49587824]
[1724408860949,3.4586,144.55,144.54,11.17224475]
[1724408861249,3.4586,144.55,144.54,7.49587824]
[1724408861449,3.4586,144.55,144.54,11.17225515]
[1724408862044,3.4586,144.55,144.54,3.72225515]
[1724408864350,3.4586,144.55,144.54,0.04587824]
[1724408864653,3.4586,144.55,144.54,3.72232197]
[1724408865149,3.4586,144.55,144.54,0.04587824]
[1724408870955,3.4586,144.55,144.54,3.72229431]
[1724408873357,3.4586,144.55,144.54,3.72224394]
[1724408880561,3.4586,144.55,144.54,7.49587824]
[1724408880762,3.4586,144.55,144.54,11.17218439]
[1724408881559,3.4586,144.55,144.54,12.55595885]
[1724408881860,3.4586,144.55,144.54,12.55599754]
[1724408882958,3.4586,144.55,144.54,12.55580608]
[1724408884562,3.4586,144.55,144.54,5.10580608]
[1724408889163,3.4586,144.55,144.54,3.7218799]
[1724408889372,3.4586,144.55,144.54,5.10568579]
[1724408889565,3.4586,144.55,144.54,1.42968413]
[1724408889871,3.4586,144.55,144.54,5.10561568]
[1724408891357,3.4586,144.55,144.54,5.10562306]
[1724408894867,3.4586,144.55,144.54,3.72180979]
[1724408895067,3.4586,144.55,144.54,5.1056768]
[1724408895664,3.4586,144.55,144.54,1.42974525]
[1724408895868,3.4586,144.55,144.54,3.72131974]
[1724408898973,3.4586,144.55,144.54,0.04587824]
[1724408899170,3.4586,144.55,144.54,3.72114615]
[1724408902469,3.4586,144.55,144.54,3.72050661]
[1724408904679,3.4586,144.55,144.54,0.04587824]
[1724408905180,0.04441141,144.57,144.54,7.49587824]
[1724408905571,3.4585,144.56,144.55,3.67347753]
[1724408905882,3.4585,144.56,144.55,3.67337964]
[1724408906080,3.4585,144.56,144.54,7.49587824]
[1724408906281,3.4585,144.56,144.55,1.38376329]
[1724408906585,3.4585,144.56,144.54,7.49587824]
[1724408906882,3.4585,144.56,144.55,1.38372185]
[1724408907078,3.4585,144.56,144.55,3.67350315]
[1724408907280,3.4585,144.56,144.55,1.3837207]
[1724408907478,3.4585,144.56,144.55,3.67416062]
[1724408907684,3.4585,144.56,144.55,5.0578798]
[1724408909081,3.4585,144.56,144.54,7.49587824]
[1724408909295,3.4585,144.56,144.55,5.05696856]
[1724408910081,3.4585,144.56,144.54,7.49587824]
[1724408910282,3.4585,144.56,144.55,5.0569508]
[1724408912686,3.4585,144.56,144.54,7.49587824]
[1724408912985,3.4585,144.56,144.55,5.05629019]
[1724408916086,3.4585,144.56,144.54,7.49587824]
[1724408916390,3.4585,144.56,144.55,5.05527677]
[1724408919397,3.4585,144.56,144.55,1.38359517]
[1724408919689,3.4585,144.56,144.55,5.05534354]
[1724408919884,3.4585,144.56,144.54,7.49587824]
[1724408920088,3.4585,144.56,144.55,3.67172642]
[1724408920788,3.4585,144.56,144.55,5.05532133]
[1724408922894,3.4585,144.56,144.55,5.05508079]
[1724408923301,0.04441141,144.57,144.55,5.05508079]
[1724408923492,0.04441141,144.57,144.56,3.67148588]
[1724408924298,3.50261141,144.57,144.56,3.67148588]
[1724408924505,0.04441141,144.57,144.54,7.49587824]
[1724408924698,0.04441141,144.57,144.56,3.67150108]
[1724408925203,3.4584,144.56,144.54,7.49587824]
[1724408925394,3.4584,144.56,144.55,5.05508314]
[1724408926500,3.4584,144.56,144.55,5.05473455]
[1724408929809,3.4584,144.56,144.55,3.6711406]
[1724408930109,3.4584,144.56,144.55,5.05473593]
[1724408930299,3.4584,144.56,144.55,1.38359533]
[1724408930504,0.04441141,144.57,144.55,12.50567798]
[1724408930702,0.04441141,144.57,144.56,3.67208265]
[1724408930902,0.04441141,144.57,144.56,11.12208265]
[1724408932311,0.04441141,144.57,144.56,3.67208265]
[1724408932709,0.04441141,144.57,144.55,7.45]
[1724408932908,0.04441141,144.57,144.56,3.67122755]
[1724408933908,0.04441141,144.57,144.56,3.67142046]
[1724408935413,3.50261141,144.57,144.56,3.67142046]
[1724408936519,3.50261141,144.57,144.54,10.95467824]
[1724408936718,3.50261141,144.57,144.55,5.05569315]
[1724408936923,3.50261141,144.57,144.56,7.45]
[1724408937619,3.50261141,144.57,144.56,11.12146634]
[1724408938227,0.04441141,144.57,144.56,11.12146634]
[1724408940425,0.04441141,144.57,144.56,7.45]
[1724408940721,0.04441141,144.57,144.56,11.12164528]
[1724408941323,3.50261141,144.57,144.56,3.67164528]
[1724408941520,3.50261141,144.57,144.54,0.04587824]
[1724408941724,0.04441141,144.57,144.55,5.05545313]
[1724408942024,0.04441141,144.57,144.54,0.04587824]
[1724408942226,0.04441141,144.57,144.55,5.05548188]
[1724408942520,3.4585,144.56,144.54,0.04587824]
[1724408942820,3.4585,144.56,144.55,5.05553057]
[1724408943120,3.4585,144.56,144.55,3.67192996]
[1724408947327,3.4586,144.55,144.54,0.04587824]
[1724408947523,3.4586,144.55,144.54,5.10220624]
[1724408948722,3.4586,144.55,144.54,5.10231471]
[1724408948924,3.4586,144.55,144.54,3.71864454]
[1724408949125,3.4586,144.55,144.54,5.10231471]
[1724408953328,3.4585,144.56,144.54,5.10231471]
[1724408953525,3.4585,144.56,144.55,3.6727663]
[1724408954432,3.4585,144.56,144.54,7.49587824]
[1724408954826,3.4585,144.56,144.55,3.67306564]
[1724408955222,3.4585,144.56,144.54,7.49587824]
[1724408955426,3.4585,144.56,144.55,3.67313255]
[1724408956525,3.4585,144.56,144.55,5.05675769]
[1724408956923,3.4585,144.56,144.55,1.38362514]
[1724408957122,3.4585,144.56,144.55,5.05669812]
[1724408958429,3.4585,144.56,144.55,5.0566011]
[1724408958638,3.4585,144.56,144.55,3.67297596]
[1724408958832,3.4585,144.56,144.54,0.04587824]
[1724408959132,3.4585,144.56,144.55,3.67330724]
[1724408960334,3.4585,144.56,144.55,5.05693836]
[1724408960731,3.4585,144.56,144.55,3.67330724]
[1724408961535,3.4585,144.56,144.55,5.05693807]
[1724408961724,3.4585,144.56,144.54,0.04587824]
[1724408961925,3.4585,144.56,144.55,5.0565155]
[1724408964841,3.4585,144.56,144.54,0.04587824]
[1724408965140,3.4585,144.56,144.55,1.38363015]
[1724408965338,3.4585,144.56,144.55,2.76726156]
[1724408965535,3.4585,144.56,144.55,6.44031098]
[1724408965936,10.9085,144.56,144.55,5.05668083]
[1724408967144,10.9085,144.56,144.55,3.67304942]
[1724408968243,10.9085,144.56,144.55,5.05669096]
[1724408968446,10.9085,144.56,144.55,3.67304942]
[1724408968742,10.9085,144.56,144.55,5.05668774]
[1724408968941,10.9085,144.56,144.55,1.38363832]
[1724408969243,3.4586,144.55,144.54,0.04587824]
[1724408969544,3.4586,144.55,144.54,5.10270225]
[1724408969743,3.4585,144.56,144.54,5.10270225]
[1724408969945,3.4585,144.56,144.54,0.04587824]
[1724408970150,3.4585,144.56,144.55,3.67305315]
[1724408970442,3.4585,144.56,144.55,5.05670205]
[1724408971840,3.4585,144.56,144.54,0.04587824]
[1724408972241,3.4585,144.56,144.55,5.05707409]
[1724408975349,3.4585,144.56,144.55,3.67357759]
[1724408975555,3.4585,144.56,144.55,5.05721568]
[1724408977749,3.4585,144.56,144.55,1.38363809]
[1724408978048,3.4585,144.56,144.55,1.56366898]
[1724408978251,3.4586,144.55,144.54,0.04587824]
[1724408978450,10.9086,144.55,144.54,0.04587824]
[1724409000962,3.4586,144.55,144.54,0.04587824]
[1724409008870,10.9086,144.55,144.54,0.04587824]
[1724409014581,3.4586,144.55,144.54,0.04587824]
[1724409017881,10.9086,144.55,144.54,0.04587824]
[1724409024280,3.4586,144.55,144.54,0.04587824]
[1724409027880,10.9086,144.55,144.54,0.04587824]
[1724409031485,3.4586,144.55,144.54,0.04587824]
[1724409036781,10.9086,144.55,144.54,0.04587824]
[1724409044303,3.4586,144.55,144.54,0.04587824]
[1724409047797,3.50261141,144.57,144.54,0.04587824]
[1724409047995,0.04441141,144.57,144.54,0.04587824]
[1724409048394,7.45,144.56,144.54,0.04587824]
[1724409049297,3.4586,144.55,144.54,0.04587824]
[1724409054900,3.4586,144.55,144.54,3.71806066]
[1724409055102,3.4586,144.55,144.54,5.10194451]
[1724409055297,3.4586,144.55,144.54,5.101859]
[1724409055497,3.4586,144.55,144.54,5.10185791]
[1724409056396,3.4586,144.55,144.54,0.04587824]
[1724409056600,3.4586,144.55,144.54,5.10182551]
[1724409056794,3.4586,144.55,144.54,3.71794985]
[1724409056999,3.4586,144.55,144.54,8.77400505]
[1724409057198,3.4586,144.55,144.54,5.10193344]
[1724409057810,3.4585,144.56,144.54,5.10193344]
[1724409058005,3.4585,144.56,144.55,1.38387568]
[1724409058309,0.04441141,144.57,144.55,12.50548388]
[1724409058503,0.04441141,144.57,144.56,5.05548388]
[1724409059610,0.04441141,144.57,144.55,7.45]
[1724409059805,0.04441141,144.57,144.56,1.38350548]
[1724409060010,0.04441141,144.57,144.56,5.05290553]
[1724409060505,3.50261141,144.57,144.56,5.05290553]
[1724409060706,3.50261141,144.57,144.56,1.38350548]
[1724409061005,3.50261141,144.57,144.56,5.05338735]
[1724409062611,3.50261141,144.57,144.56,1.38350548]
[1724409062808,3.4585,144.56,144.54,0.04587824]
[1724409063007,3.4585,144.56,144.55,5.0558988]
[1724409063309,3.4585,144.56,144.55,1.38374839]
[1724409065013,3.4585,144.56,144.55,5.05619885]
[1724409065407,3.4585,144.56,144.55,1.38373727]
[1724409065607,3.4585,144.56,144.55,5.05609983]
[1724409065807,3.4585,144.56,144.54,0.04587824]
[1724409066117,3.4585,144.56,144.55,5.05581863]
[1724409067118,0.04441141,144.57,144.55,5.05581863]
[1724409067119,3.50261141,144.57,144.55,5.05581863]
[1724409067421,3.50261141,144.57,144.54,7.49587824]
[1724409067616,3.50261141,144.57,144.55,5.05532969]
[1724409067818,3.50261141,144.57,144.54,7.49587824]
[1724409068013,3.50261141,144.57,144.55,5.05532969]
[1724409068218,3.50261141,144.57,144.54,7.49587824]
[1724409068519,3.50261141,144.57,144.55,3.67169772]
[1724409068719,3.50261141,144.57,144.54,7.49587824]
[1724409069117,3.50261141,144.57,144.55,3.6717024]
[1724409069317,3.50261141,144.57,144.54,7.49587824]
[1724409069522,3.50261141,144.57,144.55,3.67173093]
[1724409069721,3.50261141,144.57,144.54,7.49587824]
[1724409070021,3.50261141,144.57,144.55,3.67168284]
[1724409070220,3.50261141,144.57,144.54,7.49587824]
[1724409070523,3.50261141,144.57,144.55,3.67168353]
[1724409070721,3.50261141,144.57,144.54,7.49587824]
[1724409070922,3.50261141,144.57,144.55,3.67147281]
[1724409071225,3.50261141,144.57,144.54,7.49587824]
[1724409072523,3.4584,144.56,144.54,7.49587824]
[1724409073724,3.50261141,144.57,144.54,7.49587824]
[1724409074821,3.50261141,144.57,144.55,3.67053991]
[1724409075018,3.50261141,144.57,144.54,7.49587824]
[1724409075222,3.50261141,144.57,144.55,3.6702967]
[1724409075423,3.50261141,144.57,144.54,7.49587824]
[1724409075721,3.50261141,144.57,144.55,1.3835964]
[1724409075922,3.50261141,144.57,144.54,7.49587824]
[1724409076121,3.50261141,144.57,144.55,5.05349676]
[1724409076328,3.50261141,144.57,144.54,7.49587824]
[1724409076530,3.50261141,144.57,144.55,5.05358778]
[1724409076724,3.50261141,144.57,144.54,7.49587824]
[1724409076921,3.50261141,144.57,144.55,5.0535479]
[1724409077122,3.50261141,144.57,144.54,7.49587824]
[1724409077424,3.50261141,144.57,144.55,3.66976531]
[1724409077622,3.50261141,144.57,144.54,7.49587824]
[1724409077827,3.50261141,144.57,144.55,3.6693952]
[1724409078028,3.50261141,144.57,144.54,7.49587824]
[1724409078233,3.50261141,144.57,144.55,3.66895397]
[1724409078425,3.50261141,144.57,144.54,7.49587824]
[1724409084335,3.4584,144.56,144.54,0.04587824]
[1724409091832,3.4584,144.56,144.55,7.45]
[1724409092037,3.50271141,144.57,144.55,11.11864794]
[1724409092232,0.04441141,144.57,144.56,7.45]
[1724409092540,0.04441141,144.57,144.56,8.83342203]
[1724409092739,0.04441141,144.57,144.56,13.88433861]
[1724409098247,0.04441141,144.57,144.56,12.50091658]
[1724409098643,0.04441141,144.57,144.56,12.50089712]
[1724409104041,3.50261141,144.57,144.56,5.05089712]
[1724409104253,3.50261141,144.57,144.54,6.89462698]
[1724409104446,3.50261141,144.57,144.55,5.05180411]
[1724409104648,3.50261141,144.57,144.54,6.89462698]
[1724409104848,3.50261141,144.57,144.55,5.05196358]
[1724409105153,3.50261141,144.57,144.54,6.89462698]
[1724409105154,3.4584,144.56,144.54,0.04587824]
[1724409107055,3.4586,144.55,144.54,0.04587824]
[1724409107547,3.4586,144.55,144.54,3.71455329]
[1724409107748,3.4586,144.55,144.54,0.04587824]
[1724409126464,4.8216,144.56,144.54,0.04587824]
[1724409126763,4.8216,144.56,144.54,7.49587824]
[1724409126764,3.4585,144.56,144.54,7.49587824]
[1724409128456,3.50261141,144.57,144.54,7.49587824]
[1724409128965,0.04441141,144.57,144.55,7.45]
[1724409130154,0.04441141,144.57,144.55,10.9086]
[1724409130368,0.04441141,144.57,144.56,7.45]
[1724409130858,0.04441141,144.57,144.56,12.50149225]
[1724409131761,0.04441141,144.57,144.56,5.05149225]
[1724409131966,0.04441141,144.57,144.54,3.50467824]
[1724409132166,0.04441141,144.57,144.55,3.66891095]
[1724409132464,3.50251141,144.57,144.54,0.04587824]
[1724409132663,3.50251141,144.57,144.55,5.05184312]
[1724409132852,3.50251141,144.57,144.54,0.04587824]
[1724409132853,3.50251141,144.57,144.54,3.50477824]
[1724409133057,3.50251141,144.57,144.55,3.66864753]
[1724409133256,3.4584,144.56,144.54,0.04587824]
[1724409135368,3.4584,144.56,144.54,7.49587824]
[1724409136168,3.50261141,144.57,144.55,3.66853432]
[1724409136364,3.50261141,144.57,144.54,7.49587824]
[1724409136567,3.50261141,144.57,144.55,5.05208827]
[1724409136868,3.50261141,144.57,144.54,7.49587824]
[1724409137066,3.50261141,144.57,144.55,5.0521092]
[1724409137260,3.50261141,144.57,144.54,7.49587824]
[1724409137467,3.50261141,144.57,144.55,5.05206206]
[1724409137772,3.50261141,144.57,144.54,7.49587824]
[1724409138076,3.50261141,144.57,144.55,5.05206206]
[1724409138266,3.50261141,144.57,144.54,7.49587824]
[1724409138573,3.50261141,144.57,144.55,5.05207874]
[1724409138771,3.50261141,144.57,144.54,7.49587824]
[1724409138972,3.50261141,144.57,144.55,5.05199612]
[1724409139169,3.50261141,144.57,144.54,7.49587824]
[1724409139362,3.50261141,144.57,144.55,5.05208494]
[1724409139563,3.50261141,144.57,144.54,7.49587824]
[1724409139774,3.50261141,144.57,144.55,5.05208494]
[1724409139973,3.50261141,144.57,144.54,7.49587824]
[1724409140171,3.50261141,144.57,144.55,5.05193234]
[1724409140374,3.50261141,144.57,144.54,14.44215458]
[1724409140568,3.50261141,144.57,144.55,5.05194704]
[1724409140775,3.50261141,144.57,144.54,7.49587824]
[1724409140776,0.04441141,144.57,144.54,7.49587824]
[1724409140971,0.04441141,144.57,144.55,5.05192971]
[1724409141166,0.04441141,144.57,144.54,7.49587824]
[1724409141371,0.04441141,144.57,144.55,5.05192971]
[1724409141670,3.50271141,144.57,144.54,10.95467824]
[1724409141870,3.50271141,144.57,144.55,5.05090867]
[1724409142071,3.50271141,144.57,144.54,10.95467824]
[1724409142573,3.50271141,144.57,144.55,3.66682593]
[1724409142874,3.50271141,144.57,144.55,5.05034728]
[1724409143376,3.50271141,144.57,144.55,1.38352135]
[1724409146071,3.4584,144.56,144.55,1.38352135]
[1724409148679,3.4586,144.55,144.54,0.04587824]
[1724409148880,3.4586,144.55,144.54,3.71247089]
[1724409149179,3.4586,144.55,144.54,5.09608901]
[1724409152281,3.4585,144.56,144.54,5.09608901]
[1724409152482,3.4585,144.56,144.54,0.04587824]
[1724409153583,3.50271141,144.57,144.54,10.95457824]
[1724409154976,3.50271141,144.57,144.55,3.66357297]
[1724409155177,3.50271141,144.57,144.54,10.95457824]
[1724409155684,3.50271141,144.57,144.55,3.66361837]
[1724409155888,3.50271141,144.57,144.54,10.95457824]
[1724409156081,3.50271141,144.57,144.55,3.66355449]
[1724409156279,3.50271141,144.57,144.54,10.95457824]
[1724409156481,3.50271141,144.57,144.55,3.66355449]
[1724409156677,3.50271141,144.57,144.54,10.95457824]
[1724409156985,3.50271141,144.57,144.55,3.66361306]
[1724409157182,3.50271141,144.57,144.54,10.95457824]
[1724409157383,3.50271141,144.57,144.55,3.66245346]
[1724409157582,3.50271141,144.57,144.54,10.95457824]
[1724409157786,3.50271141,144.57,144.55,3.66254361]
[1724409157981,3.50271141,144.57,144.54,10.95457824]
[1724409158286,3.50271141,144.57,144.55,3.66283859]
[1724409158485,3.50271141,144.57,144.54,10.95457824]
[1724409158884,3.50271141,144.57,144.55,3.66285006]
[1724409159186,3.50271141,144.57,144.54,10.95457824]
[1724409159388,3.50271141,144.57,144.55,5.04625878]
[1724409159681,3.50271141,144.57,144.54,10.95457824]
[1724409159885,3.50271141,144.57,144.55,5.04625111]
[1724409160073,3.50271141,144.57,144.54,10.95457824]
[1724409160276,3.50271141,144.57,144.55,5.04620542]
[1724409160479,3.50271141,144.57,144.54,10.95457824]
[1724409160781,3.50271141,144.57,144.55,5.0462619]
[1724409160980,3.50271141,144.57,144.54,10.95457824]
[1724409161176,3.50271141,144.57,144.55,5.04668584]
[1724409161481,3.50271141,144.57,144.54,10.95457824]
[1724409161682,3.50271141,144.57,144.55,5.04699032]
[1724409161882,3.50271141,144.57,144.54,10.95457824]
[1724409162083,3.50271141,144.57,144.55,5.04715017]
[1724409162280,3.50271141,144.57,144.54,10.95457824]
[1724409162588,3.50271141,144.57,144.55,5.0471501]
[1724409162783,3.50271141,144.57,144.54,10.95457824]
[1724409162979,3.50271141,144.57,144.55,1.38354336]
[1724409163176,3.50271141,144.57,144.54,10.95457824]
[1724409163382,3.50271141,144.57,144.55,5.04698554]
[1724409163681,3.50271141,144.57,144.54,10.95457824]
[1724409163882,3.50271141,144.57,144.55,5.04696462]
[1724409164078,3.50271141,144.57,144.54,10.95457824]
[1724409164278,3.50271141,144.57,144.55,5.04698084]
[1724409164479,3.50271141,144.57,144.54,10.95457824]
[1724409164681,3.50271141,144.57,144.55,5.04701031]
[1724409164883,3.50271141,144.57,144.54,10.95457824]
[1724409165084,3.50271141,144.57,144.55,5.04698911]
[1724409165286,3.50271141,144.57,144.54,10.95457824]
[1724409165592,3.50271141,144.57,144.55,5.04698938]
[1724409165791,3.50271141,144.57,144.54,3.50457824]
[1724409166289,3.50271141,144.57,144.55,5.04699268]
[1724409166492,3.50271141,144.57,144.54,3.50457824]
[1724409166694,3.50271141,144.57,144.55,5.04700322]
[1724409166987,3.50271141,144.57,144.54,3.50457824]
[1724409167192,3.50271141,144.57,144.55,5.04700322]
[1724409167391,3.4584,144.56,144.54,0.04587824]
[1724409167595,3.4584,144.56,144.55,5.04701806]
[1724409169201,3.4584,144.56,144.55,5.04714684]
[1724409172398,3.4584,144.56,144.54,0.04587824]
[1724409172595,3.4584,144.56,144.55,1.38354428]
[1724409172795,3.4584,144.56,144.55,5.04601369]
[1724409172991,3.4584,144.56,144.55,6.42955797]
[1724409173196,3.4584,144.56,144.55,5.04601369]
[1724409175995,3.4584,144.56,144.54,0.04587824]
[1724409176196,3.4584,144.56,144.55,5.04728362]
[1724409179605,3.4584,144.56,144.54,0.04587824]
[1724409179805,3.4584,144.56,144.55,5.0485796]
[1724409182303,3.4584,144.56,144.54,0.04587824]
[1724409182505,3.4584,144.56,144.55,1.38355963]
[1724409182807,3.4584,144.56,144.55,5.0492642]
[1724409186816,10.9084,144.56,144.55,5.0492642]